bitfinex-derivatives/quotes_ETHF0:USTF0_20251031
["timestamp","ask_amount","ask_price","bid_price","bid_amount"]
[1761914011694,0.78287908,3872.0,3871.9,0.7517]
[1761914012392,0.78287908,3872.0,3871.9,0.4551]
[1761914013696,0.78287908,3872.0,3871.9,0.7517]
[1761914014689,0.65177908,3872.0,3871.9,0.7517]
[1761914014899,0.08077908,3872.0,3871.9,0.7517]
[1761914016393,3.3389,3873.0,3872.4,0.5246]
[1761914016594,3.7962,3873.0,3872.9,0.2271]
[1761914016789,3.87697178,3873.0,3872.9,0.2271]
[1761914016989,4.22767178,3873.0,3872.9,0.2271]
[1761914017886,0.08077178,3873.0,3872.9,0.7517]
[1761914018292,0.43147178,3873.0,3872.9,0.7517]
[1761914018497,0.78287178,3873.0,3872.9,41.5517]
[1761914018888,0.43147178,3873.0,3872.9,41.5517]
[1761914019194,0.08077178,3873.0,3872.9,41.5517]
[1761914019990,0.4818,3874.0,3873.9,0.2131]
[1761914020300,0.4818,3874.0,3873.9,0.4262]
[1761914020301,0.7021,3874.0,3873.9,0.4262]
[1761914020598,0.7021,3874.0,3873.9,41.2262]
[1761914021095,0.70483753,3874.0,3873.9,41.2262]
[1761914021402,0.35343753,3874.0,3873.9,41.4384]
[1761914021702,0.00273753,3874.0,3873.9,41.4384]
[1761914022288,0.33673753,3874.0,3873.9,41.4384]
[1761914022488,0.93893753,3874.0,3873.9,41.2262]
[1761914022696,0.00273753,3874.0,3873.9,41.4384]
[1761914023593,0.00273753,3874.0,3873.9,50.4394]
[1761914026099,0.5694,3874.9,3874.8,0.4244]
[1761914027101,0.80221229,3874.9,3874.8,0.42655203]
[1761914027990,0.00281229,3874.9,3874.8,0.96405203]
[1761914028191,0.33681229,3874.9,3874.8,0.96405203]
[1761914028585,0.33681229,3874.9,3874.8,41.76405203]
[1761914028791,0.57221229,3874.9,3874.8,41.43875203]
[1761914029599,0.80221229,3874.9,3874.8,41.01435203]
[1761914030493,0.80221229,3874.9,3874.8,41.22655203]
[1761914030699,0.57221229,3874.9,3874.8,41.22655203]
[1761914031400,0.57221229,3874.9,3874.8,41.01435203]
[1761914031694,0.80221229,3874.9,3874.8,41.01435203]
[1761914033997,0.57221229,3874.9,3874.8,41.22685203]
[1761914034894,0.00281229,3874.9,3874.8,41.22685203]
[1761914035696,0.585,3875.6,3875.5,0.6375]
[1761914036002,0.585,3875.6,3875.5,0.425]
[1761914036303,0.8128,3875.6,3875.5,0.425]
[1761914036497,0.3495,3875.5,3875.2,0.2125]
[1761914036704,0.3495,3875.3,3875.2,0.6375]
[1761914037701,0.14311213,3875.5,3875.4,0.6375]
[1761914038000,0.37861213,3875.5,3875.4,0.6375]
[1761914038190,0.72811213,3875.5,3875.4,0.6375]
[1761914039202,0.35221213,3875.5,3875.4,0.6375]
[1761914039388,0.00271213,3875.5,3875.4,0.6375]
[1761914039588,0.35221213,3875.5,3875.4,0.6375]
[1761914039789,0.00271213,3875.5,3875.4,0.6375]
[1761914040591,0.35221213,3875.5,3875.4,0.6375]
[1761914041003,0.00271213,3875.5,3875.4,0.6375]
[1761914042404,0.3723,3876.5,3876.4,0.75017]
[1761914042601,0.3723,3876.5,3876.4,3.95797]
[1761914042803,0.7218,3876.5,3876.4,3.95797]
[1761914043204,0.72404719,3876.5,3876.4,3.95797]
[1761914043704,0.72404719,3876.5,3876.4,44.97047]
[1761914044702,0.72404719,3876.5,3876.4,44.6453]
[1761914045307,0.95184719,3876.5,3876.4,44.4328]
[1761914045609,0.95184719,3876.5,3876.4,44.0078]
[1761914047103,0.00224719,3876.5,3876.4,44.2203]
[1761914047909,0.35174719,3876.5,3876.4,44.2203]
[1761914048100,0.35174719,3876.5,3876.4,53.2173]
[1761914048298,0.00224719,3876.5,3876.4,53.2173]
[1761914049601,0.35174719,3876.5,3876.4,53.2193]
[1761914050002,0.35174719,3876.5,3876.4,44.2203]
[1761914050205,0.95544719,3876.5,3876.4,44.0078]
[1761914050515,0.7177,3876.0,3875.9,3.4203]
[1761914050697,1.03389463,3876.0,3875.9,3.4203]
[1761914050904,1.03389463,3876.0,3875.9,3.2078]
[1761914051402,1.03389463,3876.0,3875.9,3.4201]
[1761914051797,1.03389621,3876.0,3875.9,3.6324]
[1761914052904,0.351,3876.4,3876.3,0.6369]
[1761914053108,0.43168797,3876.4,3876.3,3.8447]
[1761914053508,0.87188797,3876.4,3876.3,3.6324]
[1761914054706,0.9273,3876.0,3875.9,3.2078]
[1761914054905,1.00798797,3876.0,3875.9,3.2078]
[1761914056213,1.00798797,3876.0,3875.9,3.4201]
[1761914058007,1.00798797,3876.0,3875.9,3.2078]
[1761914059414,1.00798797,3876.0,3875.9,3.4201]
[1761914059610,0.43168797,3876.0,3875.9,3.8441]
[1761914059813,0.08068797,3876.0,3875.9,3.8441]
[1761914060114,0.214,3876.2,3876.1,0.424]
[1761914060315,0.29469497,3876.2,3876.1,0.424]
[1761914060613,0.83489497,3876.2,3876.1,0.424]
[1761914061812,0.5701,3876.0,3875.9,3.4198]
[1761914062016,0.97479497,3876.0,3875.9,3.4198]
[1761914063415,0.97479497,3876.0,3875.9,3.2078]
[1761914063919,0.97479497,3876.0,3875.9,3.6318]
[1761914064219,0.40469497,3876.0,3875.9,3.8438]
[1761914064715,0.97479497,3876.0,3875.9,3.6318]
[1761914065719,0.97479497,3876.0,3875.9,3.95701]
[1761914066020,0.08069497,3876.0,3875.9,4.16901]
[1761914066213,0.538,3876.2,3876.1,0.636]
[1761914066421,0.83489416,3876.2,3876.1,0.212]
[1761914066613,0.83489416,3876.2,3875.9,3.2078]
[1761914066813,0.8941,3876.0,3875.9,3.4198]
[1761914067014,0.97479416,3876.0,3875.9,3.4198]
[1761914067616,0.97479416,3876.0,3875.9,3.6318]
[1761914068115,0.97479416,3876.0,3875.9,3.4198]
[1761914069215,0.97479416,3876.0,3875.9,3.6318]
[1761914071025,0.00224719,3876.5,3876.4,0.7903]
[1761914071214,0.57234719,3876.5,3876.4,0.7903]
[1761914071415,0.57234719,3876.5,3876.4,0.4577]
[1761914071722,0.57234719,3876.5,3876.4,0.7903]
[1761914072924,0.43244719,3876.5,3876.4,0.7903]
[1761914073123,0.75644719,3876.5,3876.4,0.7903]
[1761914074119,0.7542,3876.1,3876.0,0.2356]
[1761914075918,0.7542,3876.1,3876.0,0.7903]
[1761914076627,0.43244719,3876.5,3876.4,0.7903]
[1761914077226,0.75644719,3876.5,3876.4,0.7903]
[1761914078522,0.00224719,3876.5,3876.4,0.7903]
[1761914079826,0.00224719,3876.5,3876.4,42.28146588]
[1761914083221,1.39002746,3878.9,3878.0,1.25294]
[1761914083517,0.8057,3878.9,3878.8,0.797]
[1761914083721,0.88634525,3878.9,3878.8,0.797]
[1761914084118,0.88944504,3878.9,3878.8,0.79883498]
[1761914084322,0.31024504,3878.9,3878.8,0.79883498]
[1761914084522,0.00309979,3878.9,3878.8,0.79883498]
[1761914085631,0.80879979,3878.9,3878.8,0.00183498]
[1761914085829,0.88943534,3878.9,3878.8,0.00183498]
[1761914086232,0.80879979,3878.9,3878.8,0.00183498]
[1761914088034,0.88944731,3878.9,3878.8,0.00183498]
[1761914088327,0.80879979,3878.9,3878.8,0.00183498]
[1761914088733,0.88944763,3878.9,3878.8,0.00183498]
[1761914091627,0.88944763,3878.9,3878.8,0.21873498]
[1761914091831,0.88944763,3878.9,3878.8,0.00183498]
[1761914092734,0.88944597,3878.9,3878.8,0.00183498]
[1761914093131,0.88944597,3878.9,3878.8,0.79883498]
[1761914093325,0.80879979,3878.9,3878.8,0.79883498]
[1761914095632,0.55319979,3878.9,3878.8,0.79883498]
[1761914096036,0.00309979,3878.9,3878.8,0.79883498]
[1761914096536,0.54389979,3878.9,3878.8,0.79883498]
[1761914097135,0.22029979,3878.9,3878.8,0.79883498]
[1761914097336,0.00309979,3878.9,3878.8,0.79883498]
[1761914098228,0.76879979,3878.9,3878.8,0.79883498]
[1761914099135,0.00309979,3878.9,3878.8,0.79883498]
[1761914101236,0.76879979,3878.9,3878.8,0.79883498]
[1761914102038,0.76879979,3878.9,3878.8,0.00183498]
[1761914102535,0.76879979,3878.9,3878.8,0.23663498]
[1761914102836,8.998,3879.8,3878.8,0.23663498]
[1761914102837,1.03130367,3880.2,3880.1,0.7945]
[1761914103040,5.48746778,3881.1,3880.1,0.7945]
[1761914103041,0.2172,3881.2,3881.1,0.5768]
[1761914103232,0.2249,3881.1,3880.7,0.342]
[1761914103427,0.4421,3880.6,3880.5,0.4728]
[1761914103632,0.4421,3880.6,3880.1,0.342]
[1761914103633,0.2249,3880.2,3880.1,0.342]
[1761914103940,0.44445889,3880.2,3880.1,41.3768]
[1761914104537,0.44445889,3880.2,3880.1,0.5768]
[1761914104839,0.74855889,3880.2,3880.1,0.5768]
[1761914105740,0.00235889,3880.2,3880.1,0.7945]
[1761914105933,0.00235889,3880.2,3880.1,4.0023]
[1761914106541,3.2078,3881.2,3881.1,0.4525]
[1761914106842,3.28840129,3881.2,3881.1,0.7945]
[1761914107037,0.08060129,3881.2,3881.1,0.7945]
[1761914107729,0.29995189,3881.2,3881.1,0.7945]
[1761914110046,0.29995189,3881.2,3881.1,41.5945]
[1761914112745,0.08275189,3881.2,3881.1,41.5945]
[1761914113436,0.30375189,3881.2,3881.1,41.5945]
[1761914113642,0.52135189,3881.2,3881.1,41.5945]
[1761914115848,0.4386,3880.6,3880.5,0.5876]
[1761914116050,0.51920129,3880.6,3880.5,0.5876]
[1761914116244,0.30160129,3880.6,3880.5,41.7246]
[1761914116646,0.51920129,3880.6,3880.5,0.9246]
[1761914117841,0.52190129,3880.6,3880.5,0.9246]
[1761914118541,0.4413,3880.2,3880.1,40.8]
[1761914118748,0.52190129,3880.2,3880.1,40.8]
[1761914119247,0.4413,3879.9,3879.8,3.4337]
[1761914119550,0.52190129,3879.9,3879.8,3.4337]
[1761914119846,0.52190129,3879.9,3879.8,3.7584]
[1761914120239,0.52190129,3879.9,3879.8,0.5506]
[1761914121050,0.82820129,3879.9,3879.8,0.5506]
[1761914121247,0.82820129,3879.9,3879.8,0.3247]
[1761914122553,0.7476,3879.6,3879.5,41.1567]
[1761914122748,0.7476,3879.1,3879.0,0.3643]
[1761914122952,0.52190129,3879.1,3879.0,0.919]
[1761914123152,0.52190129,3879.1,3879.0,41.719]
[1761914123651,0.29920129,3879.1,3879.0,41.719]
[1761914124459,0.08060129,3879.1,3879.0,41.719]
[1761914124646,3.4264,3879.6,3879.5,0.9174]
[1761914124954,4.03603467,3879.6,3879.5,0.9174]
[1761914125455,3.72973467,3879.6,3879.5,0.9174]
[1761914125654,0.2186,3879.1,3879.0,40.9384]
[1761914125845,0.08063467,3879.1,3879.0,40.9384]
[1761914126351,0.08063467,3879.1,3879.0,41.2631]
[1761914127353,0.7476,3878.9,3878.8,0.22773498]
[1761914127544,0.08063467,3878.9,3878.8,0.45773498]
[1761914127746,0.29924199,3879.1,3879.0,0.5927]
[1761914128052,0.08064199,3879.1,3879.0,0.9174]
[1761914128253,0.29924199,3879.1,3879.0,0.9174]
[1761914128448,0.52194199,3879.1,3879.0,0.9174]
[1761914129244,0.29924199,3879.1,3879.0,0.9174]
[1761914129855,0.52194199,3879.1,3879.0,0.9174]
[1761914131857,0.08064199,3879.1,3879.0,0.9174]
[1761914134157,0.52194199,3879.1,3879.0,0.9174]
[1761914134554,0.82824199,3879.1,3879.0,0.5506]
[1761914136860,0.4413,3878.9,3878.8,0.22773498]
[1761914137053,0.52194199,3878.9,3878.8,0.45773498]
[1761914137560,0.52194199,3878.9,3878.8,0.78243498]
[1761914138154,0.4413,3878.9,3878.8,0.78243498]
[1761914139864,0.52194797,3878.9,3878.8,0.78243498]
[1761914141061,0.08064797,3878.9,3878.8,0.78243498]
[1761914142264,0.29494797,3878.9,3878.8,0.78243498]
[1761914142963,0.08064797,3878.9,3878.8,0.78243498]
[1761914143662,0.51754797,3878.9,3878.8,0.78243498]
[1761914143964,4.03184797,3878.9,3878.8,0.00183498]
[1761914144358,0.7434,3878.1,3878.0,0.3691]
[1761914144557,0.82404797,3878.1,3878.0,0.2323]
[1761914144757,0.82404797,3878.1,3878.0,0.3679]
[1761914144965,0.82404797,3878.1,3878.0,0.7097]
[1761914145165,0.51754797,3878.1,3878.0,0.9424]
[1761914145365,0.51944322,3878.1,3878.0,0.94444244]
[1761914147365,0.82594322,3878.1,3878.0,0.94444244]
[1761914147569,0.82594322,3878.1,3878.0,0.71174244]
[1761914147865,0.82594322,3878.1,3878.0,0.57614244]
[1761914148075,0.4369,3877.8,3877.0,0.1368]
[1761914148365,0.7739,3876.6,3876.5,1.04717043]
[1761914148562,0.51754797,3876.6,3876.5,1.04717043]
[1761914148769,0.29494797,3876.6,3876.5,1.04717043]
[1761914149166,0.29494797,3876.6,3876.5,1.04915057]
[1761914149656,0.85454797,3876.6,3876.5,1.04915057]
[1761914150061,0.85454797,3876.6,3876.5,1.25535057]
[1761914150766,0.85454797,3876.6,3876.5,1.39095057]
[1761914150968,0.51754797,3876.6,3876.5,1.39095057]
[1761914151168,0.29494797,3876.6,3876.5,1.39095057]
[1761914151369,0.63194797,3876.6,3876.5,1.39095057]
[1761914151665,0.29494797,3876.6,3876.5,1.39095057]
[1761914152170,0.08064797,3876.6,3876.5,1.39095057]
[1761914152365,0.29499287,3876.8,3876.7,0.8068]
[1761914152666,0.85459287,3876.8,3876.7,0.8068]
[1761914153168,0.85459287,3876.8,3876.5,0.44855057]
[1761914153474,0.2143,3876.0,3875.9,0.3418]
[1761914153666,0.98269287,3876.0,3875.9,0.5741]
[1761914153874,0.51759287,3876.0,3875.9,0.8068]
[1761914154569,0.51759287,3876.0,3875.9,0.80958085]
[1761914154771,0.08069287,3876.0,3875.9,0.80958085]
[1761914155970,9.053,3876.1,3876.0,0.9424]
[1761914156162,9.1337036,3876.1,3876.0,0.9424]
[1761914156563,9.053,3876.1,3876.0,0.9424]
[1761914157770,9.053,3876.8,3876.7,0.465]
[1761914157972,9.34798963,3876.8,3876.7,0.8068]
[1761914158283,9.13368963,3876.8,3876.7,0.8068]
[1761914158571,9.68498721,3876.8,3876.7,0.8068]
[1761914158774,9.34798721,3876.8,3876.7,0.8068]
[1761914159269,3.2078,3876.9,3876.8,0.8068]
[1761914159474,3.2884867,3876.9,3876.8,0.8068]
[1761914159668,9.6083,3877.5,3877.4,0.8068]
[1761914159868,0.08067951,3877.5,3877.4,0.8068]
[1761914161666,0.08067951,3877.5,3877.0,0.1356]
[1761914161667,0.98267951,3877.5,3877.0,0.1356]
[1761914161865,0.98267951,3877.5,3875.5,42.31120195]
[1761914161866,0.337,3876.8,3876.2,0.3418]
[1761914162065,0.63197951,3876.7,3876.6,0.5745]
[1761914162374,0.29497951,3876.7,3876.6,0.8068]
[1761914162674,0.7739,3876.0,3875.9,0.00278085]
[1761914162971,4.06240728,3876.0,3875.9,0.23508085]
[1761914165178,4.06240728,3876.0,3875.9,0.57688085]
[1761914165362,4.06240728,3876.0,3875.9,0.80958085]
[1761914165972,4.19050728,3876.0,3875.9,0.00278085]
[1761914166583,4.19050728,3876.0,3875.2,0.3418]
[1761914166584,0.7739,3875.3,3875.2,0.2323]
[1761914166874,0.7739,3875.3,3874.7,0.02580878]
[1761914166875,0.5513,3875.2,3875.1,0.8068]
[1761914167067,0.63200728,3875.2,3875.1,0.8068]
[1761914167267,0.85460728,3875.2,3875.1,0.8068]
[1761914167476,0.2973851,3875.2,3875.1,0.8095321]
[1761914167975,0.8569851,3875.2,3875.1,0.0027321]
[1761914169067,0.8569851,3875.2,3875.1,0.5768321]
[1761914169270,0.8569851,3875.2,3875.1,0.8095321]
[1761914169673,0.8569851,3875.2,3875.1,0.0027321]
[1761914171661,0.8569851,3875.2,3874.7,0.02580878]
[1761914171662,0.7811,3874.8,3874.7,0.02580878]
[1761914171877,0.5651,3873.8,3873.7,0.8009]
[1761914172072,0.5651,3873.8,3873.5,0.4465]
[1761914172073,0.7982,3873.6,3873.5,0.4465]
[1761914172377,0.87890728,3873.6,3873.5,0.2156]
[1761914172562,0.87890728,3873.6,3873.5,0.2184781]
[1761914172872,0.87890728,3873.6,3873.5,0.5728781]
[1761914173075,0.87890728,3873.6,3873.5,0.2184781]
[1761914173777,0.87890728,3873.6,3873.5,0.5728781]
[1761914174370,0.87890728,3873.6,3873.5,0.0028781]
[1761914176381,0.87896705,3873.6,3873.5,0.0028781]
[1761914178271,0.2311,3872.6,3872.5,0.563]
[1761914178474,0.8068,3872.6,3872.5,0.79]
[1761914178676,0.4584,3872.6,3872.5,0.79]
[1761914178882,0.4584,3872.6,3872.5,0.9263]
[1761914179482,0.2311,3872.6,3872.5,0.92936814]
[1761914179782,0.5795,3872.6,3872.5,0.92936814]
[1761914179978,0.8068,3872.6,3872.5,0.79306814]
[1761914180682,0.88757336,3872.6,3872.5,0.79306814]
[1761914180880,9.08,3872.7,3872.6,0.79]
[1761914181073,9.16077383,3872.7,3872.6,0.79]
[1761914181379,9.96757383,3872.7,3872.6,0.79]
[1761914182380,9.61917383,3872.7,3872.6,0.79]
[1761914182683,9.16077383,3872.7,3872.6,0.79]
[1761914184183,9.08,3872.7,3872.6,0.79]
[1761914184785,0.5795,3873.3,3873.2,0.79]
[1761914184976,4.97786763,3873.3,3873.2,0.79]
[1761914185484,5.32626763,3873.3,3873.2,0.79]
[1761914186073,0.66026763,3873.3,3873.2,0.79]
[1761914186385,4.28986763,3873.3,3873.2,0.79]
[1761914188270,4.63826763,3873.3,3873.2,0.79]
[1761914188470,4.86556763,3873.3,3873.2,0.79]
[1761914189572,4.28986763,3873.3,3873.2,0.79]
[1761914189774,0.08076763,3873.3,3873.2,0.79]
[1761914190081,0.3484,3873.7,3873.2,0.3459]
[1761914190387,0.8068,3873.3,3873.2,0.2171]
[1761914190580,0.53915357,3873.3,3873.2,0.79]
[1761914190786,0.88755357,3873.3,3873.2,0.79]
[1761914191681,0.8068,3873.1,3873.0,44.2249]
[1761914191877,0.88755357,3873.1,3873.0,3.7708]
[1761914192591,0.88755357,3873.1,3873.0,3.2078]
[1761914193084,0.2311,3872.7,3872.6,44.0078]
[1761914193282,0.31185357,3872.7,3872.6,44.0078]
[1761914193480,0.08075357,3872.7,3872.6,44.0078]
[1761914193680,0.2311,3873.2,3873.1,0.79]
[1761914193890,0.31186107,3873.2,3873.1,0.79]
[1761914194086,0.88756107,3873.2,3873.1,0.79]
[1761914194280,0.2311,3872.7,3872.6,44.0078]
[1761914194590,0.31186107,3872.7,3872.6,44.0078]
[1761914194795,0.08076107,3872.7,3872.6,44.0078]
[1761914195084,0.2311,3872.7,3872.6,3.7708]
[1761914195390,0.88756199,3872.7,3872.6,3.6519]
[1761914195682,0.88756199,3872.7,3872.6,3.9978]
[1761914197678,0.88756199,3872.7,3871.6,0.68780097]
[1761914197679,0.4584,3871.7,3871.6,0.68780097]
[1761914197890,0.8068,3871.4,3871.3,0.79]
[1761914198188,0.53916199,3871.4,3871.3,41.59]
[1761914198390,0.53916199,3871.4,3871.3,0.79]
[1761914198583,0.88756199,3871.4,3871.3,0.79]
[1761914198784,0.89089178,3871.4,3871.3,0.79180722]
[1761914199486,0.89089178,3871.4,3871.3,0.21890722]
[1761914200091,0.89089178,3871.4,3871.3,0.56480722]
[1761914200389,0.54249178,3871.4,3871.3,0.79180722]
[1761914200692,0.89089178,3871.4,3871.3,0.79180722]
[1761914201094,0.31519178,3871.4,3871.3,0.79180722]
[1761914201295,0.08409178,3871.4,3871.3,0.79180722]
[1761914201586,13.15389178,3871.4,3871.3,0.00180722]
[1761914202684,0.777,3870.1,3870.0,0.68780097]
[1761914202885,0.777,3870.1,3869.3,0.68780097]
[1761914202886,0.777,3869.8,3869.3,0.68780097]
[1761914203088,4.06556199,3869.8,3869.7,0.58274213]
[1761914203283,4.06556199,3869.8,3869.7,0.79934213]
[1761914203594,3.73946199,3869.8,3869.7,0.8025698]
[1761914203892,4.06556199,3869.8,3869.7,0.8025698]
[1761914204294,4.06556199,3869.8,3869.7,0.2460698]
[1761914204693,4.06556199,3869.8,3869.7,0.0290698]
[1761914205090,4.06556199,3869.8,3868.3,40.8]
[1761914205091,0.5545,3868.2,3868.1,3.6414]
[1761914205491,0.3706,3868.5,3868.4,0.217]
[1761914205695,0.08085912,3868.5,3868.4,0.4336]
[1761914205888,3.2078,3869.2,3869.1,0.217]
[1761914206098,4.06779506,3869.2,3869.1,0.00249695]
[1761914206994,4.06779506,3869.2,3869.1,0.43609695]
[1761914207194,0.00214058,3869.2,3869.1,0.77599695]
[1761914208603,0.00214058,3869.2,3869.1,49.57599695]
[1761914209000,0.3261,3870.0,3869.1,41.57599695]
[1761914209205,0.2284,3870.1,3870.0,0.5569]
[1761914209404,0.2284,3869.7,3869.6,3.9813]
[1761914209705,0.6967,3870.0,3869.9,0.4336]
[1761914209904,0.6967,3870.0,3869.9,41.2336]
[1761914210105,0.69873153,3870.0,3869.9,41.2336]
[1761914210408,0.92123153,3870.0,3869.9,40.8]
[1761914210603,1.0020642,3870.0,3869.9,40.8]
[1761914211003,0.3261,3869.9,3869.3,0.3399]
[1761914211602,0.777,3869.5,3869.4,40.8]
[1761914212100,9.4331,3869.7,3869.6,0.4336]
[1761914212301,9.18783605,3869.7,3869.6,0.7735]
[1761914212498,9.107,3869.7,3869.6,41.5735]
[1761914212701,0.00203153,3870.0,3869.9,0.7735]
[1761914215906,0.00203153,3870.0,3869.9,1.09921]
[1761914217404,0.00203153,3870.0,3869.9,9.09921]
[1761914217996,0.00203153,3870.0,3869.9,49.89921]
[1761914219304,0.5626,3871.0,3870.9,0.2179]
[1761914219499,7.4118,3871.3,3871.2,0.4419]
[1761914219808,0.5962,3872.0,3871.9,0.7936]
[1761914220100,3.4376,3872.4,3872.3,0.2179]
[1761914220310,0.4565,3872.1,3871.6,0.3517]
[1761914220605,3.43984253,3872.4,3872.3,0.2179]
[1761914220806,3.74732439,3872.4,3872.3,0.2179]
[1761914221209,4.08012439,3872.4,3872.3,0.2179]
[1761914221414,0.87232439,3872.4,3872.3,0.2179]
[1761914221705,0.7893,3871.7,3871.6,0.00275255]
[1761914221901,0.87008186,3871.7,3871.6,0.00275255]
[1761914222611,0.87008186,3871.7,3871.6,0.79635255]
[1761914222908,0.64338186,3871.7,3871.6,0.79635255]
[1761914223108,12.8073,3872.0,3871.9,0.7936]
[1761914223306,0.78308893,3872.0,3871.9,0.7936]
[1761914223502,0.64338893,3872.0,3871.9,0.7936]
[1761914224008,0.5626,3872.3,3872.2,0.2179]
[1761914224307,0.08078325,3872.3,3872.2,0.7936]
[1761914224709,0.00224253,3872.4,3872.3,0.7936]
[1761914224899,0.00224253,3872.4,3872.3,4.32691]
[1761914225098,0.00224253,3872.4,3872.3,4.0014]
[1761914226210,3.4,3873.3,3873.2,0.7936]
[1761914227210,3.40261209,3873.3,3873.2,0.7936]
[1761914227413,3.96521209,3873.3,3873.2,0.4419]
[1761914227710,3.96521209,3873.3,3873.2,0.7936]
[1761914228014,0.00261209,3873.3,3873.2,0.7936]
[1761914229011,0.00261209,3873.3,3873.2,41.5936]
[1761914229507,0.33541209,3873.3,3873.2,41.5936]
[1761914229810,0.00261209,3873.3,3873.2,41.5936]
[1761914231812,0.77921209,3873.3,3873.2,40.8]
[1761914232001,0.77921209,3873.3,3872.5,3.2078]
[1761914232002,0.5628,3872.6,3872.5,3.4379]
[1761914232197,0.7766,3872.2,3872.1,3.4379]
[1761914232409,0.7766,3872.2,3872.1,44.0078]
[1761914233012,0.7766,3872.2,3872.1,44.3415]
[1761914233612,0.7766,3872.2,3872.1,44.0078]
[1761914233810,0.7766,3872.2,3872.1,44.3415]
[1761914234308,0.132,3873.0,3872.4,0.2301]
[1761914234309,0.2144,3872.5,3872.4,0.2301]
[1761914234516,0.4282,3872.2,3872.1,44.0078]
[1761914234908,0.132,3872.4,3871.7,3.2078]
[1761914234909,0.7766,3871.8,3871.7,3.2078]
[1761914235105,0.9086,3871.8,3871.7,3.2078]
[1761914235305,0.9086,3871.8,3871.7,3.4379]
[1761914235614,0.9086,3871.8,3871.7,40.8]
[1761914235912,0.7766,3871.7,3871.6,0.00275255]
[1761914237110,0.7766,3871.7,3870.8,9.137]
[1761914237111,0.2144,3869.8,3869.7,0.92037476]
[1761914237317,0.6948,3870.0,3869.9,0.2301]
[1761914237707,0.9086,3870.0,3869.3,0.3337]
[1761914237902,0.3484,3869.9,3869.3,0.3337]
[1761914238213,0.5628,3869.4,3869.3,0.23269457]
[1761914238607,0.9068,3869.4,3869.3,0.23269457]
[1761914238913,0.9068,3869.4,3869.3,0.00259457]
[1761914239309,0.3484,3869.4,3869.3,0.77239457]
[1761914239508,0.5715,3869.4,3869.3,0.44769457]
[1761914239718,0.9261,3869.4,3869.3,0.00259457]
[1761914244018,0.5715,3869.4,3869.3,0.00259457]
[1761914244410,0.9261,3869.4,3869.3,0.00259457]
[1761914245117,0.9277,3869.4,3869.3,0.00259457]
[1761914247612,0.5731,3869.4,3869.3,0.77239457]
[1761914247816,0.9277,3869.4,3869.3,0.00259457]
[1761914248916,10.0907,3869.4,3869.3,0.00259457]
[1761914250216,0.2231,3869.4,3869.3,0.44769457]
[1761914250420,0.5777,3869.4,3869.3,0.44769457]
[1761914250720,0.9277,3869.4,3869.3,0.44769457]
[1761914251121,0.9277,3869.4,3869.3,0.00259457]
[1761914251709,0.35,3869.9,3869.4,0.3247]
[1761914251914,0.7975,3869.9,3869.8,0.2287]
[1761914252220,4.4545,3869.9,3869.8,0.2287]
[1761914252918,0.5731,3869.6,3869.5,40.8]
[1761914253312,0.5731,3869.6,3869.5,41.1247]
[1761914254322,4.5925,3869.9,3869.8,0.2287]
[1761914255423,0.7975,3869.9,3869.8,0.2287]
[1761914255624,0.13521658,3870.0,3869.8,0.7698]
[1761914255824,0.13521658,3870.0,3869.5,40.8]
[1761914255825,0.57631658,3870.0,3869.9,0.7698]
[1761914256228,0.57631658,3870.0,3869.3,0.00259457]
[1761914256229,3.2078,3867.6,3867.0,1.83413593]
[1761914256424,3.4309,3867.1,3867.0,0.4451]
[1761914256631,3.2078,3867.1,3867.0,0.8985]
[1761914256827,3.2078,3867.1,3867.0,4.55287043]
[1761914257230,3.21079587,3867.1,3867.0,4.55483249]
[1761914259233,3.97519587,3867.1,3867.0,0.00196206]
[1761914259923,8.75919587,3867.1,3867.0,0.00196206]
[1761914260536,3.2078,3866.7,3865.1,0.3247]
[1761914260725,3.2078,3865.8,3865.2,0.4534]
[1761914260924,0.2214,3865.4,3865.3,0.3997]
[1761914261127,3.6479,3865.4,3865.3,4.05407043]
[1761914261437,3.2078,3866.0,3865.5,0.3997]
[1761914261638,0.4305,3866.3,3865.5,0.3997]
[1761914261639,3.2078,3865.6,3865.5,0.6325]
[1761914262235,3.2078,3865.6,3865.5,45.08687043]
[1761914263141,3.2078,3865.6,3865.5,41.4325]
[1761914263443,12.95682957,3866.2,3866.1,0.3997]
[1761914263740,12.95682957,3866.2,3865.6,0.3997]
[1761914264237,3.2078,3865.7,3865.5,0.3997]
[1761914264438,0.2214,3865.6,3865.5,0.3997]
[1761914265435,0.2214,3865.4,3865.3,0.40192248]
[1761914265636,0.4401,3865.4,3865.3,0.40192248]
[1761914265836,0.8706,3865.4,3865.3,0.40192248]
[1761914266037,0.4401,3865.4,3865.3,0.63472248]
[1761914266237,3.2078,3865.7,3865.6,0.6325]
[1761914266429,12.5348,3865.7,3865.6,0.6325]
[1761914266635,3.2078,3865.7,3865.6,0.851]
[1761914267238,9.327,3866.0,3865.9,0.851]
[1761914267539,9.327,3866.0,3865.8,0.1301]
[1761914267540,3.2078,3866.1,3866.0,0.851]
[1761914267944,3.2078,3866.6,3866.5,0.851]
[1761914268941,0.4401,3866.5,3866.1,0.3997]
[1761914269239,0.8706,3865.9,3865.4,0.3997]
[1761914269443,3.2078,3866.2,3866.1,0.851]
[1761914269636,0.2214,3866.3,3866.2,0.6325]
[1761914269841,9.327,3866.5,3866.4,0.2328]
[1761914270140,0.30230615,3866.5,3866.4,0.6325]
[1761914270440,0.30230587,3866.5,3866.4,0.7626]
[1761914270648,3.43219587,3867.1,3867.0,0.6325]
[1761914270844,4.28446616,3867.1,3867.0,0.6325]
[1761914271137,4.71496616,3867.1,3866.5,0.3997]
[1761914271339,0.63357029,3867.0,3866.5,0.3997]
[1761914271538,0.08089577,3866.9,3866.5,0.3997]
[1761914271735,12.97329587,3867.1,3866.5,0.3997]
[1761914271937,0.51139476,3867.0,3866.5,0.3997]
[1761914272138,0.08089476,3866.9,3866.8,0.851]
[1761914272539,0.30229476,3866.9,3866.8,0.851]
[1761914273044,0.2214,3866.6,3866.5,0.6325]